fUSD/lending_fUSD_20240429
["ID","MTS","AMOUNT","RATE_DAILY","PERIOD"]
[324841765,1714369851648,-500.0,0.00012599,2]
[324841766,1714369851657,-500.0,0.00012599,2]
[324841767,1714369851666,-500.0,0.00012599,2]
[324841768,1714369851676,-500.0,0.00012599,2]
[324841769,1714369851684,-500.0,0.00012599,2]
[324841770,1714369851694,-500.0,0.00012599,2]
[324841771,1714369851703,-711.96,0.00012599,2]
[324841772,1714369851713,-500.0,0.00012599,2]
[324841773,1714369851722,-500.0,0.00012599,2]
[324841774,1714369851731,-500.0,0.00012599,2]
[324841775,1714369851740,-500.0,0.00012599,2]
[324841776,1714369851753,-500.0,0.00012599,2]
[324841777,1714369851763,-500.0,0.00012599,2]
[324841778,1714369851772,-500.0,0.00012599,2]
[324841779,1714369851782,-151.0,0.00012599,2]
[324841780,1714369851791,-151.0,0.00012599,2]
[324841781,1714369851801,-523.29080647,0.00012599,2]
[324841782,1714369851811,-452.55,0.00012599,2]
[324841783,1714369851820,-500.0,0.00012599,2]
[324841784,1714369851829,-500.0,0.00012599,2]
[324841785,1714369851838,-500.0,0.00012599,2]
[324841786,1714369851848,-500.92039762,0.00012599,2]
[324841787,1714369851857,-500.0,0.00012599,2]
[324841788,1714369851866,-151.0,0.00012599,2]
[324841789,1714369851875,-151.0,0.00012599,2]
[324841790,1714369851884,-151.0,0.00012599,2]
[324841791,1714369851894,-151.0,0.00012599,2]
[324841792,1714369851903,-834.2063,0.000126,2]
[324841793,1714369851913,-165168.9268,0.000126,2]
[324841794,1714369851922,-285.724672,0.000126,2]
[324841795,1714369851931,-151.0,0.000126,2]
[324841796,1714369851940,-223.096615,0.000126,2]
[324841797,1714369851950,-151.138006,0.000126,2]
[324841798,1714369851959,-151.0,0.000126,2]
[324841799,1714369851968,-151.0,0.000126,2]
[324841800,1714369851978,-151.547035,0.000126,2]
[324841801,1714369851987,-151.604763,0.000126,2]
[324841802,1714369851998,-151.0,0.000126,2]
[324841803,1714369852007,-151.0,0.000126,2]
[324841804,1714369852015,-151.0,0.000126,2]
[324841805,1714369852025,-151.0,0.000126,2]
[324841806,1714369852034,-152.645666,0.000126,2]
[324841807,1714369852043,-152.645666,0.000126,2]
[324841808,1714369852053,-151.0,0.000126,2]
[324841809,1714369852063,-151.0,0.000126,2]
[324841810,1714369852072,-343.861261,0.000126,2]
[324841811,1714369852082,-343.861261,0.000126,2]
[324841812,1714369852091,-211.137646,0.000126,2]
[324841813,1714369852100,-233.251933,0.000126,2]
[324841814,1714369852109,-211.137646,0.000126,2]
[324841815,1714369852118,-151.0,0.000126,2]
[324841816,1714369852128,-233.251933,0.000126,2]
[324841817,1714369852138,-151.0,0.000126,2]
[324841818,1714369852147,-151.0,0.000126,2]
[324841819,1714369852156,-151.0,0.000126,2]
[324841820,1714369852166,-151.0,0.000126,2]
[324841821,1714369852176,-151.0,0.000126,2]
[324841822,1714369852191,-151.0,0.000126,2]
[324841823,1714369852200,-151.0,0.000126,2]
[324841824,1714369852210,-500.0,0.00012601,2]
[324841825,1714369852219,-500.0,0.00012602,2]
[324841826,1714369852229,-500.0,0.00012602,2]
[324841827,1714369852239,-500.0,0.00012602,2]
[324841828,1714369852250,-500.0,0.00012602,2]
[324841829,1714369852259,-500.0,0.00012602,2]
[324841830,1714369852270,-629.87,0.00012602,2]
[324841831,1714369852279,-2212.09,0.00012602,2]
[324841832,1714369852289,-635.44,0.00012602,2]
[324841833,1714369852298,-500.0,0.00012602,2]
[324841834,1714369852307,-500.0,0.00012602,2]
[324841835,1714369852316,-500.0,0.00012602,2]
[324841836,1714369852326,-500.0,0.00012602,2]
[324841837,1714369852335,-500.0,0.00012602,2]
[324841838,1714369852344,-1206.18,0.00012602,2]
[324841839,1714369852354,-1241.44,0.00012602,2]
[324841840,1714369852363,-500.0,0.00012602,2]
[324841841,1714369852373,-500.0,0.00012602,2]
[324841842,1714369852382,-1143.41,0.00012602,2]
[324841843,1714369852391,-500.0,0.00012602,2]
[324841844,1714369852400,-500.0,0.00012602,2]
[324841845,1714369852409,-1668.88,0.00012602,2]
[324841846,1714369852419,-654.9,0.00012602,2]
[324841847,1714369852428,-500.0,0.00012602,2]
[324841848,1714369852437,-1123.26,0.00012602,2]
[324841849,1714369852446,-577.75,0.00012602,2]
[324841850,1714369852455,-500.0,0.00012602,2]
[324841851,1714369852464,-691.21,0.00012602,2]
[324841852,1714369852473,-1148.03,0.00012602,2]
[324841853,1714369852483,-703.26,0.00012602,2]
[324841854,1714369852492,-537.19923451,0.00012602,2]
[324841855,1714369852501,-500.0,0.00012602,2]
[324841856,1714369852511,-865.39,0.00012602,2]
[324841857,1714369852520,-500.0,0.00012602,2]
[324841858,1714369852529,-1051.22,0.00012602,2]
[324841859,1714369852537,-766.76,0.00012602,2]
[324841860,1714369852547,-813.64,0.00012602,2]
[324841861,1714369852556,-1514.85,0.00012602,2]
[324841862,1714369852565,-820.07,0.00012602,2]
[324841863,1714369852574,-500.0,0.00012602,2]
[324841864,1714369852584,-500.0,0.00012602,2]
[324841865,1714369852596,-579.14,0.00012602,2]
[324841866,1714369852605,-3775.3,0.00012602,2]
[324841867,1714369852617,-1259.62,0.00012602,2]
[324841868,1714369852653,-500.0,0.00012602,2]
[324841869,1714369852663,-500.0,0.00012602,2]
[324841870,1714369852672,-434.31,0.00012602,2]
[324841871,1714369852681,-500.0,0.00012602,2]
[324841872,1714369852690,-190.01,0.00012602,2]
[324841873,1714369852699,-4974.82,0.00012602,2]
[324841874,1714369852708,-500.0,0.00012602,2]
[324841875,1714369852718,-1321.25,0.00012602,2]
[324841876,1714369852727,-451.85,0.00012608,2]
[324841877,1714369852736,-724.43076,0.0001265,2]
[324841878,1714369852747,-32551.6919324,0.00012673,2]
[324841879,1714369852756,-150.0,0.00012675,2]
[324841880,1714369852765,-150.0,0.00012682,2]
[324841881,1714369852775,-150.0,0.00012682,2]
[324841882,1714369852784,-4608.9086,0.00012687,2]
[324841883,1714369852793,-150.0,0.0001269,2]
[324841884,1714369852802,-150.0,0.00012691,2]
[324841885,1714369852811,-157.042914,0.00012695,2]
[324841886,1714369852820,-161.042914,0.00012696,2]
[324841887,1714369852829,-159.042914,0.00012696,2]
[324841888,1714369852838,-157.042914,0.00012696,2]
[324841889,1714369852847,-377.80212497,0.00012697,2]
[324841890,1714369852856,-409.47699589,0.00012697,2]
[324841891,1714369852865,-706.80422125,0.00012697,2]
[324841892,1714369852874,-527.20251454,0.00012697,2]
[324841893,1714369852884,-360.84372027,0.00012697,2]
[324841894,1714369852893,-200.79941395,0.00012697,2]
[324841895,1714369852902,-155.09463905,0.00012697,2]
[324841896,1714369852911,-256.10091231,0.00012697,2]
[324841897,1714369852920,-155.08747106,0.00012697,2]
[324841898,1714369852930,-214.24052737,0.00012697,2]
[324841899,1714369852939,-5000.0,0.00012698,2]
[324841900,1714369853080,-500.0,0.00012698,2]
[324841901,1714369853090,-170.251858,0.00012698,2]
[324841902,1714369853099,-500.0,0.00012699,2]
[324841903,1714369853108,-500.0,0.00012699,2]
[324841904,1714369853118,-500.0,0.00012699,2]
[324841905,1714369853127,-500.0,0.00012699,2]
[324841906,1714369853136,-500.0,0.00012699,2]
[324841907,1714369853145,-500.0,0.00012699,2]
[324841908,1714369853155,-500.0,0.00012699,2]
[324841909,1714369853164,-500.0,0.00012699,2]
[324841910,1714369853174,-500.0,0.00012699,2]
[324841911,1714369853183,-500.0,0.00012699,2]
[324841912,1714369853196,-500.0,0.00012699,2]
[324841913,1714369853205,-566.22,0.00012699,2]
[324841914,1714369853216,-500.0,0.00012699,2]
[324841915,1714369853225,-500.0,0.00012699,2]
[324841916,1714369853234,-500.0,0.00012699,2]
[324841917,1714369853245,-500.0,0.00012699,2]
[324841918,1714369853254,-500.0,0.00012699,2]
[324841919,1714369853267,-500.0,0.00012699,2]
[324841920,1714369853276,-385.35703542,0.00012699,2]
[324841921,1714369853285,-500.0,0.00012699,2]
[324841922,1714369853294,-500.0,0.00012699,2]
[324841923,1714369853303,-500.0,0.00012699,2]
[324841924,1714369853313,-500.0,0.00012699,2]
[324841925,1714369853322,-500.0,0.00012699,2]
[324841926,1714369853331,-500.0,0.00012699,2]
[324841927,1714369853340,-500.0,0.00012699,2]
[324841928,1714369853350,-500.0,0.00012699,2]
[324841929,1714369853359,-500.0,0.00012699,2]
[324841930,1714369853367,-500.0,0.00012699,2]
[324841931,1714369853377,-500.0,0.00012699,2]
[324841932,1714369853387,-500.0,0.00012699,2]
[324841933,1714369853396,-500.0,0.00012699,2]
[324841934,1714369853405,-578.91,0.00012699,2]
[324841935,1714369853414,-500.0,0.00012699,2]
[324841936,1714369853424,-507.09,0.00012699,2]
[324841937,1714369853433,-500.0,0.00012699,2]
[324841938,1714369853442,-500.0,0.00012699,2]
[324841939,1714369853451,-500.0,0.00012699,2]
[324841940,1714369853462,-500.0,0.00012699,2]
[324841941,1714369853471,-500.0,0.00012699,2]
[324841942,1714369853480,-500.0,0.00012699,2]
[324841943,1714369853490,-590.99737263,0.00012699,2]
[324841944,1714369853502,-500.0,0.00012699,2]
[324841945,1714369853511,-506.53088314,0.00012699,2]
[324841946,1714369853519,-502.34325777,0.00012699,2]
[324841947,1714369853528,-500.0,0.00012699,2]
[324841948,1714369853537,-500.0,0.00012699,2]
[324841949,1714369853547,-404.78,0.00012699,2]
[324841950,1714369853556,-500.0,0.00012699,2]
[324841951,1714369853565,-500.0,0.00012699,2]
[324841952,1714369853574,-501.2071119,0.00012699,2]
[324841953,1714369853583,-500.0,0.00012699,2]
[324841954,1714369853592,-500.0,0.00012699,2]
[324841955,1714369853602,-489.55375256,0.00012699,2]
[324841956,1714369853611,-500.0,0.00012699,2]
[324841957,1714369853621,-500.0,0.00012699,2]
[324841958,1714369853630,-508.62976442,0.00012699,2]
[324841959,1714369853639,-500.0,0.00012699,2]
[324841960,1714369853648,-500.0,0.00012699,2]
[324841961,1714369853657,-500.0,0.00012699,2]
[324841962,1714369853667,-500.0,0.00012699,2]
[324841963,1714369853676,-500.0,0.00012699,2]
[324841964,1714369853685,-500.0,0.00012699,2]
[324841965,1714369853694,-500.0,0.00012699,2]
[324841966,1714369853703,-500.0,0.00012699,2]
[324841967,1714369853712,-500.0,0.00012699,2]
[324841968,1714369853721,-500.0,0.00012699,2]
[324841969,1714369853730,-588.44,0.00012699,2]
[324841970,1714369853740,-500.0,0.00012699,2]
[324841971,1714369853751,-500.0,0.00012699,2]
[324841972,1714369853760,-500.0,0.00012699,2]
[324841973,1714369853768,-580.10868977,0.00012699,2]
[324841974,1714369853778,-500.0,0.00012699,2]
[324841975,1714369853787,-503.67878338,0.00012699,2]
[324841976,1714369853796,-507.64883305,0.00012699,2]
[324841977,1714369853805,-1947.22,0.00012699,2]
[324841978,1714369853815,-500.0,0.00012699,2]
[324841979,1714369853824,-500.0,0.00012699,2]
[324841980,1714369853834,-500.0,0.00012699,2]
[324841981,1714369853842,-500.0,0.00012699,2]
[324841982,1714369853851,-503.06117177,0.00012699,2]
[324841983,1714369853861,-500.0,0.00012699,2]
[324841984,1714369853870,-500.0,0.00012699,2]
[324841985,1714369853879,-500.0,0.00012699,2]
[324841986,1714369853889,-500.0,0.00012699,2]
[324841987,1714369853898,-500.0,0.00012699,2]
[324841988,1714369853908,-500.0,0.00012699,2]
[324841989,1714369853917,-504.0606392,0.00012699,2]
[324841990,1714369853926,-500.0,0.00012699,2]
[324841991,1714369853935,-500.0,0.00012699,2]
[324841992,1714369853943,-500.0,0.00012699,2]
[324841993,1714369853953,-500.0,0.00012699,2]
[324841994,1714369853962,-500.0,0.00012699,2]
[324841995,1714369853971,-500.0,0.00012699,2]
[324841996,1714369853980,-500.0,0.00012699,2]
[324841997,1714369853990,-500.0,0.00012699,2]
[324841998,1714369854005,-507.53282743,0.00012699,2]
[324841999,1714369854014,-500.0,0.00012699,2]
[324842000,1714369854023,-500.0,0.00012699,2]
[324842001,1714369854033,-500.0,0.00012699,2]
[324842002,1714369854043,-500.0,0.00012699,2]
[324842003,1714369854052,-500.0,0.00012699,2]
[324842004,1714369854062,-500.0,0.00012699,2]
[324842005,1714369854071,-500.0,0.00012699,2]
[324842006,1714369854080,-151.0,0.00012699,2]
[324842007,1714369854089,-500.0,0.00012699,2]
[324842008,1714369854099,-152.005832,0.00012699,2]
[324842009,1714369854108,-500.0,0.00012699,2]
[324842010,1714369854117,-505.24113905,0.00012699,2]
[324842011,1714369854126,-500.0,0.00012699,2]
[324842012,1714369854135,-500.0,0.00012699,2]
[324842013,1714369854145,-500.0,0.00012699,2]
[324842014,1714369854155,-500.0,0.00012699,2]
[324842015,1714369854165,-500.0,0.00012699,2]
[324842016,1714369854174,-500.0,0.00012699,2]
[324842017,1714369854183,-500.0,0.00012699,2]
[324842018,1714369854195,-500.0,0.00012699,2]
[324842019,1714369854204,-500.0,0.00012699,2]
[324842020,1714369854213,-504.26804754,0.00012699,2]
[324842021,1714369854223,-500.0,0.00012699,2]
[324842022,1714369854233,-500.0,0.00012699,2]
[324842023,1714369854242,-500.0,0.00012699,2]
[324842024,1714369854253,-504.7840823,0.00012699,2]
[324842025,1714369854263,-256.12292,0.00012699,2]
[324842026,1714369854272,-500.0,0.00012699,2]
[324842027,1714369854283,-500.0,0.00012699,2]
[324842028,1714369854292,-202.072974,0.00012699,2]
[324842029,1714369854301,-502.05337171,0.00012699,2]
[324842030,1714369854310,-507.64225717,0.00012699,2]
[324842031,1714369854319,-500.0,0.00012699,2]
[324842032,1714369854328,-500.0,0.00012699,2]
[324842033,1714369854338,-500.0,0.00012699,2]
[324842034,1714369854347,-500.0,0.00012699,2]
[324842035,1714369854356,-500.0,0.00012699,2]
[324842036,1714369854365,-500.0,0.00012699,2]
[324842037,1714369854374,-500.0,0.00012699,2]
[324842038,1714369854383,-500.0,0.00012699,2]
[324842039,1714369854392,-500.0,0.00012699,2]
[324842040,1714369854402,-500.0,0.00012699,2]
[324842041,1714369854411,-195.160842,0.00012699,2]
[324842042,1714369854420,-623.35842445,0.00012699,2]
[324842043,1714369854429,-500.0,0.00012699,2]
[324842044,1714369854439,-195.160842,0.00012699,2]
[324842045,1714369854448,-500.0,0.00012699,2]
[324842046,1714369854458,-500.0,0.00012699,2]
[324842047,1714369854467,-500.0,0.00012699,2]
[324842048,1714369854477,-500.0,0.00012699,2]
[324842049,1714369854486,-204.75,0.00012699,2]
[324842050,1714369854496,-500.0,0.00012699,2]
[324842051,1714369854506,-500.0,0.00012699,2]
[324842052,1714369854516,-500.0,0.00012699,2]
[324842053,1714369854526,-500.0,0.00012699,2]
[324842054,1714369854535,-500.0,0.00012699,2]
[324842055,1714369854545,-504.07438619,0.00012699,2]
[324842056,1714369854555,-500.0,0.00012699,2]
[324842057,1714369854564,-151.0,0.00012699,2]
[324842058,1714369854573,-501.85835581,0.00012699,2]
[324842059,1714369854582,-500.0,0.00012699,2]
[324842060,1714369854592,-151.0,0.00012699,2]
[324842061,1714369854601,-500.0,0.00012699,2]
[324842062,1714369854611,-500.0,0.00012699,2]
[324842063,1714369854620,-151.0,0.00012699,2]
[324842064,1714369854630,-151.0,0.00012699,2]
[324842065,1714369854639,-502.2896314,0.00012699,2]
[324842066,1714369854648,-500.0,0.00012699,2]
[324842067,1714369854657,-500.0,0.00012699,2]
[324842068,1714369854666,-151.0,0.00012699,2]
[324842069,1714369854675,-169.386647,0.00012699,2]
[324842070,1714369854684,-151.0,0.00012699,2]
[324842071,1714369854693,-500.0,0.00012699,2]
[324842072,1714369854703,-151.0,0.00012699,2]
[324842073,1714369854713,-500.0,0.00012699,2]
[324842074,1714369854723,-500.0,0.00012699,2]
[324842075,1714369854731,-500.0,0.00012699,2]
[324842076,1714369854741,-500.0,0.00012699,2]
[324842077,1714369854752,-500.51517265,0.00012699,2]
[324842078,1714369854762,-502.17385144,0.00012699,2]
[324842079,1714369854771,-500.0,0.00012699,2]
[324842080,1714369854780,-504.67487139,0.00012699,2]
[324842081,1714369854789,-500.0,0.00012699,2]
[324842082,1714369854798,-500.0,0.00012699,2]
[324842083,1714369854807,-500.0,0.00012699,2]
[324842084,1714369854816,-500.0,0.00012699,2]
[324842085,1714369854826,-500.0,0.00012699,2]
[324842086,1714369854835,-500.0,0.00012699,2]
[324842087,1714369854844,-500.0,0.00012699,2]
[324842088,1714369854853,-500.0,0.00012699,2]
[324842089,1714369854863,-500.0,0.00012699,2]
[324842090,1714369854872,-500.0,0.00012699,2]
[324842091,1714369854881,-500.0,0.00012699,2]
[324842092,1714369854890,-500.0,0.00012699,2]
[324842093,1714369854900,-500.0,0.00012699,2]
[324842094,1714369854909,-500.0,0.00012699,2]
[324842095,1714369854918,-511.65241041,0.00012699,2]
[324842096,1714369854927,-500.0,0.00012699,2]
[324842097,1714369854937,-500.0,0.00012699,2]
[324842098,1714369854947,-500.0,0.00012699,2]
[324842099,1714369854956,-151.0,0.00012699,2]
[324842100,1714369854965,-153.409919,0.00012699,2]
[324842101,1714369854974,-500.0,0.00012699,2]
[324842102,1714369854983,-500.0,0.00012699,2]
[324842103,1714369854992,-503.0723402,0.00012699,2]
[324842104,1714369855003,-508.00907093,0.00012699,2]
[324842105,1714369855012,-502.75951586,0.00012699,2]
[324842106,1714369855021,-500.0,0.00012699,2]
[324842107,1714369855030,-500.0,0.00012699,2]
[324842108,1714369855039,-500.0,0.00012699,2]
[324842109,1714369855048,-500.0,0.00012699,2]
[324842110,1714369855058,-234.32865565,0.00012699,2]
[324842111,1714369855067,-500.0,0.00012699,2]
[324842112,1714369855076,-500.0,0.00012699,2]
[324842113,1714369855085,-500.0,0.00012699,2]
[324842114,1714369855094,-500.0,0.00012699,2]
[324842115,1714369855104,-500.0,0.00012699,2]
[324842116,1714369855113,-500.0,0.00012699,2]
[324842117,1714369855123,-500.0,0.00012699,2]
[324842118,1714369855132,-500.0,0.00012699,2]
[324842119,1714369855142,-500.0,0.00012699,2]
[324842120,1714369855151,-500.0,0.00012699,2]
[324842121,1714369855161,-500.0,0.00012699,2]
[324842122,1714369855170,-500.0,0.00012699,2]
[324842123,1714369855179,-500.0,0.00012699,2]
[324842124,1714369855192,-500.0,0.00012699,2]
[324842125,1714369855201,-502.7201813,0.00012699,2]
[324842126,1714369855210,-503.36382323,0.00012699,2]
[324842127,1714369855219,-500.0,0.00012699,2]
[324842128,1714369855229,-500.0,0.00012699,2]
[324842129,1714369855238,-502.97936871,0.00012699,2]
[324842130,1714369855248,-151.0,0.00012699,2]
[324842131,1714369855258,-198.0,0.00012699,2]
[324842132,1714369855271,-500.0,0.00012699,2]
[324842133,1714369855280,-500.0,0.00012699,2]
[324842134,1714369855289,-504.33966969,0.00012699,2]
[324842135,1714369855298,-500.0,0.00012699,2]
[324842136,1714369855306,-500.0,0.00012699,2]
[324842137,1714369855316,-511.47571027,0.00012699,2]
[324842138,1714369855325,-500.0,0.00012699,2]
[324842139,1714369855334,-940.68,0.00012699,2]
[324842140,1714369855343,-500.0,0.00012699,2]
[324842141,1714369855352,-500.0,0.00012699,2]
[324842142,1714369855362,-500.0,0.00012699,2]
[324842143,1714369855371,-500.0,0.00012699,2]
[324842144,1714369855380,-503.01406706,0.00012699,2]
[324842145,1714369855389,-151.0,0.00012699,2]
[324842146,1714369855398,-151.0,0.00012699,2]
[324842147,1714369855407,-500.0,0.00012699,2]
[324842148,1714369855417,-500.0,0.00012699,2]
[324842149,1714369855427,-504.85328938,0.00012699,2]
[324842150,1714369855438,-500.0,0.00012699,2]
[324842151,1714369855446,-500.0,0.00012699,2]
[324842152,1714369855456,-500.0,0.00012699,2]
[324842153,1714369855465,-151.0,0.00012699,2]
[324842154,1714369855474,-151.0,0.00012699,2]
[324842155,1714369855483,-500.0,0.00012699,2]
[324842156,1714369855492,-500.0,0.00012699,2]
[324842157,1714369855503,-500.0,0.00012699,2]
[324842158,1714369855511,-500.0,0.00012699,2]
[324842159,1714369855520,-500.0,0.00012699,2]
[324842160,1714369855529,-500.0,0.00012699,2]
[324842161,1714369855538,-500.0,0.00012699,2]
[324842162,1714369855547,-500.0,0.00012699,2]
[324842163,1714369855556,-500.0,0.00012699,2]
[324842164,1714369855565,-500.0,0.00012699,2]
[324842165,1714369855574,-530.61642097,0.00012699,2]
[324842166,1714369855583,-500.74452117,0.00012699,2]
[324842167,1714369855592,-500.0,0.00012699,2]
[324842168,1714369855601,-500.0,0.00012699,2]
[324842169,1714369855736,-501.32562402,0.00012699,2]
[324842170,1714369855746,-500.0,0.00012699,2]
[324842171,1714369855757,-500.0,0.00012699,2]
[324842172,1714369855766,-500.0,0.00012699,2]
[324842173,1714369855774,-500.0,0.00012699,2]
[324842174,1714369855784,-241.27586092,0.00012699,2]
[324842175,1714369855793,-500.0,0.00012699,2]
[324842176,1714369855802,-500.0,0.00012699,2]
[324842177,1714369855812,-500.0,0.00012699,2]
[324842178,1714369855821,-152.765151,0.00012699,2]
[324842179,1714369855830,-500.0,0.00012699,2]
[324842180,1714369855839,-507.54010638,0.00012699,2]
[324842181,1714369855848,-500.0,0.00012699,2]
[324842182,1714369855858,-500.0,0.00012699,2]
[324842183,1714369855867,-506.05245563,0.00012699,2]
[324842184,1714369855876,-217.07058397,0.00012699,2]
[324842185,1714369855886,-500.0,0.00012699,2]
[324842186,1714369855895,-500.0,0.00012699,2]
[324842187,1714369855904,-500.0,0.00012699,2]
[324842188,1714369855914,-500.0,0.00012699,2]
[324842189,1714369855923,-500.0,0.00012699,2]
[324842190,1714369855933,-214.581841,0.00012699,2]
[324842191,1714369855942,-500.0,0.00012699,2]
[324842192,1714369855951,-500.0,0.00012699,2]
[324842193,1714369855960,-510.5583678,0.00012699,2]
[324842194,1714369855969,-500.0,0.00012699,2]
[324842195,1714369855979,-500.0,0.00012699,2]
[324842196,1714369855988,-500.0,0.00012699,2]
[324842197,1714369855997,-500.0,0.00012699,2]
[324842198,1714369856007,-151.0,0.00012699,2]
[324842199,1714369856016,-151.0,0.00012699,2]
[324842200,1714369856025,-153.131954,0.00012699,2]
[324842201,1714369856035,-500.0,0.00012699,2]
[324842202,1714369856045,-497.98372895,0.00012699,2]
[324842203,1714369856054,-500.0,0.00012699,2]
[324842204,1714369856063,-500.0,0.00012699,2]
[324842205,1714369856072,-500.0,0.00012699,2]
[324842206,1714369856080,-500.0,0.00012699,2]
[324842207,1714369856090,-500.0,0.00012699,2]
[324842208,1714369856099,-500.0,0.00012699,2]
[324842209,1714369856109,-500.0,0.00012699,2]
[324842210,1714369856118,-503.67720334,0.00012699,2]
[324842211,1714369856127,-500.0,0.00012699,2]
[324842212,1714369856136,-500.0,0.00012699,2]
[324842213,1714369856145,-500.0,0.00012699,2]
[324842214,1714369856155,-500.0,0.00012699,2]
[324842215,1714369856164,-500.0,0.00012699,2]
[324842216,1714369856173,-500.0,0.00012699,2]
[324842217,1714369856183,-501.22696699,0.00012699,2]
[324842218,1714369856197,-833.96,0.00012699,2]
[324842219,1714369856206,-500.0,0.00012699,2]
[324842220,1714369856215,-500.0,0.00012699,2]
[324842221,1714369856224,-500.0,0.00012699,2]
[324842222,1714369856234,-500.0,0.00012699,2]
[324842223,1714369856242,-504.68615249,0.00012699,2]
[324842224,1714369856252,-152.645666,0.00012699,2]
[324842225,1714369856264,-152.645666,0.00012699,2]
[324842226,1714369856273,-500.0,0.00012699,2]
[324842227,1714369856282,-503.47354945,0.00012699,2]
[324842228,1714369856291,-500.0,0.00012699,2]
[324842229,1714369856300,-152.645666,0.00012699,2]
[324842230,1714369856309,-152.645666,0.00012699,2]
[324842231,1714369856319,-500.0,0.00012699,2]
[324842232,1714369856328,-501.57662709,0.00012699,2]
[324842233,1714369856336,-500.0,0.00012699,2]
[324842234,1714369856346,-504.74228308,0.00012699,2]
[324842235,1714369856355,-500.0,0.00012699,2]
[324842236,1714369856364,-500.0,0.00012699,2]
[324842237,1714369856373,-500.0,0.00012699,2]
[324842238,1714369856382,-500.0,0.00012699,2]
[324842239,1714369856392,-728.48,0.00012699,2]
[324842240,1714369856401,-501.3534207,0.00012699,2]
[324842241,1714369856410,-500.0,0.00012699,2]
[324842242,1714369856419,-500.0,0.00012699,2]
[324842243,1714369856428,-151.0,0.00012699,2]
[324842244,1714369856437,-151.0,0.00012699,2]
[324842245,1714369856446,-477.0975455,0.00012699,2]
[324842246,1714369856455,-514.3489719,0.00012699,2]
[324842247,1714369856465,-500.0,0.00012699,2]
[324842248,1714369856474,-1867.75,0.00012699,2]
[324842249,1714369856483,-500.0,0.00012699,2]
[324842250,1714369856492,-500.0,0.00012699,2]
[324842251,1714369856503,-500.0,0.00012699,2]
[324842252,1714369856511,-500.0,0.00012699,2]
[324842253,1714369856520,-500.0,0.00012699,2]
[324842254,1714369856529,-500.0,0.00012699,2]
[324842255,1714369856540,-500.0,0.00012699,2]
[324842256,1714369856551,-151.0,0.00012699,2]
[324842257,1714369856560,-151.0,0.00012699,2]
[324842258,1714369856569,-501.93412714,0.00012699,2]
[324842259,1714369856579,-500.0,0.00012699,2]
[324842260,1714369856588,-500.0,0.00012699,2]
[324842261,1714369856597,-500.0,0.00012699,2]
[324842262,1714369856606,-500.0,0.00012699,2]
[324842263,1714369856615,-500.0,0.00012699,2]
[324842264,1714369856624,-964.41,0.00012699,2]